fUST/lending_fUST_20251230
["ID","MTS","AMOUNT","RATE_DAILY","PERIOD"]
[400081024,1767075043915,-500.0,0.00021917,2]
[400081025,1767075043924,-7648.051807,0.00021917,2]
[400081026,1767075043934,-478.21623539,0.00021917,2]
[400081027,1767075043943,-464.76334376,0.00021917,2]
[400081028,1767075043952,-316.16014628,0.00021917,2]
[400081029,1767075043961,-550.90127323,0.00021917,2]
[400081030,1767075043971,-509.18604531,0.00021917,2]
[400081031,1767075043980,-383.57132978,0.00021917,2]
[400081032,1767075043990,-264.9392192,0.00021917,2]
[400081033,1767075043999,-426.20730668,0.00021917,2]
[400081034,1767075044008,-359.95549187,0.00021917,2]
[400081035,1767075044018,-500.0,0.00021917,2]
[400081036,1767075044027,-501.12093149,0.00021917,2]
[400081037,1767075044037,-295.2511899,0.00021917,2]
[400081038,1767075044047,-509.70359709,0.00021917,2]
[400081039,1767075044056,-454.07829285,0.00021917,2]
[400081040,1767075044066,-501.22712139,0.00021917,2]
[400081041,1767075044075,-476.90769747,0.00021917,2]
[400081042,1767075044169,-500.0,0.00021917,2]
[400081043,1767075044179,-494.20939552,0.00021917,2]
[400081044,1767075044188,-223.21748018,0.00021917,2]
[400081045,1767075044198,-218.777766,0.00021917,2]
[400081046,1767075044208,-500.0,0.00021917,2]
[400081047,1767075044218,-500.0,0.00021917,2]
[400081048,1767075044227,-367.5163094,0.00021917,2]
[400081049,1767075044237,-497.98100807,0.00021917,2]
[400081050,1767075044246,-486.84467399,0.00021917,2]
[400081051,1767075044255,-488.40239306,0.00021917,2]
[400081053,1767075044265,-216.60341199,0.00021917,2]
[400081054,1767075044275,-253.69247233,0.00021917,2]
[400081055,1767075044284,-354.67878225,0.00021917,2]
[400081056,1767075044293,-486.74530578,0.00021917,2]
[400081057,1767075044303,-500.0,0.00021917,2]
[400081058,1767075044312,-1264.07272714,0.00021917,2]
[400081059,1767075044321,-322.31792125,0.00021917,2]
[400081060,1767075044330,-408.64927459,0.00021917,2]
[400081061,1767075044339,-256.42020615,0.00021917,2]
[400081062,1767075044348,-484.32908546,0.00021917,2]
[400081063,1767075044357,-380.57291504,0.00021917,2]
[400081064,1767075044367,-244.9309608,0.00021917,2]
[400081065,1767075044375,-206.65781947,0.00021917,2]
[400081066,1767075044384,-273.05832441,0.00021917,2]
[400081067,1767075044394,-266.21522382,0.00021917,2]
[400081068,1767075044404,-362.03368786,0.00021917,2]
[400081069,1767075044414,-468.46876956,0.00021917,2]
[400081070,1767075044423,-1000.1468578,0.00021917,2]
[400081071,1767075044434,-335.91898352,0.00021917,2]
[400081072,1767075044443,-534.80878098,0.00021917,2]
[400081073,1767075044453,-244.84208293,0.00021917,2]
[400081074,1767075044463,-179.66551101,0.00021917,2]
[400081075,1767075044472,-479.73408141,0.00021917,2]
[400081076,1767075044482,-361.11966938,0.00021917,2]
[400081077,1767075044492,-332.84203168,0.00021917,2]
[400081078,1767075044502,-222.40611764,0.00021917,2]
[400081079,1767075044511,-161.65920763,0.00021917,2]
[400081080,1767075044521,-229.74671603,0.00021917,2]
[400081081,1767075044530,-543.01533026,0.00021917,2]
[400081082,1767075044540,-610.85708768,0.00021917,2]
[400081083,1767075044550,-496.84809073,0.00021917,2]
[400081084,1767075044560,-500.0,0.00021917,2]
[400081085,1767075044569,-500.0,0.00021917,2]
[400081086,1767075044578,-1000.52584611,0.00021917,2]
[400081087,1767075044588,-415.78305326,0.00021917,2]
[400081088,1767075044598,-175.06796343,0.00021917,2]
[400081089,1767075044608,-276.79786927,0.00021917,2]
[400081090,1767075044618,-213.95949455,0.00021917,2]
[400081091,1767075044627,-242.92590961,0.00021917,2]
[400081092,1767075044637,-495.99265184,0.00021917,2]
[400081093,1767075044647,-489.36109289,0.00021917,2]
[400081094,1767075044657,-507.48530578,0.00021917,2]
[400081095,1767075044670,-591.60116078,0.00021917,2]
[400081096,1767075044680,-296.24098014,0.00021917,2]
[400081097,1767075044690,-238.33993024,0.00021917,2]
[400081098,1767075044699,-491.35885865,0.00021917,2]
[400081099,1767075044711,-464.56381766,0.00021917,2]
[400081100,1767075044720,-573.23461641,0.00021917,2]
[400081101,1767075044730,-501.68456333,0.00021917,2]
[400081102,1767075044743,-234.10449026,0.00021917,2]
[400081103,1767075044753,-293.41497811,0.00021917,2]
[400081104,1767075044763,-292.27108544,0.00021917,2]
[400081105,1767075044772,-182.95883851,0.00021917,2]
[400081106,1767075044782,-448.81665893,0.00021917,2]
[400081107,1767075044791,-468.20528792,0.00021917,2]
[400081108,1767075044801,-395.08803825,0.00021917,2]
[400081109,1767075044811,-331.31461136,0.00021917,2]
[400081110,1767075044821,-214.62430021,0.00021917,2]
[400081111,1767075044830,-313.26838819,0.00021917,2]
[400081112,1767075044839,-416.42753173,0.00021917,2]
[400081113,1767075044849,-246.85883541,0.00021917,2]
[400081114,1767075044859,-499.82329983,0.00021917,2]
[400081115,1767075044868,-241.812254,0.00021917,2]
[400081116,1767075044878,-492.69043668,0.00021917,2]
[400081117,1767075044887,-288.94230664,0.00021917,2]
[400081118,1767075044897,-198.05075534,0.00021917,2]
[400081119,1767075044907,-233.95773104,0.00021917,2]
[400081120,1767075044917,-212.49369694,0.00021917,2]
[400081121,1767075044927,-246.39472202,0.00021917,2]
[400081122,1767075044937,-486.41954782,0.00021917,2]
[400081123,1767075044947,-251.7142983,0.00021917,2]
[400081124,1767075044956,-194.53004279,0.00021917,2]
[400081125,1767075044966,-232.50445623,0.00021917,2]
[400081126,1767075044975,-295.22030358,0.00021917,2]
[400081127,1767075044985,-191.99719017,0.00021917,2]
[400081128,1767075044995,-417.36752029,0.00021917,2]
[400081129,1767075045004,-180.75323926,0.00021917,2]
[400081130,1767075045015,-285.08202354,0.00021917,2]
[400081131,1767075045024,-452.76867007,0.00021917,2]
[400081132,1767075045034,-441.1912262,0.00021917,2]
[400081133,1767075045043,-216.64018666,0.00021917,2]
[400081134,1767075045053,-529.43122651,0.00021917,2]
[400081135,1767075045063,-193.5526784,0.00021917,2]
[400081136,1767075045072,-500.0,0.00021917,2]
[400081137,1767075045082,-592.33106367,0.00021917,2]
[400081138,1767075045092,-198.30678278,0.00021917,2]
[400081139,1767075045101,-507.39394315,0.00021917,2]
[400081140,1767075045111,-409.31799387,0.00021917,2]
[400081141,1767075045120,-193.15983236,0.00021917,2]
[400081142,1767075045130,-202.94786336,0.00021917,2]
[400081143,1767075045140,-501.33640111,0.00021917,2]
[400081144,1767075045150,-1406.3,0.00021917,2]
[400081145,1767075045160,-461.31122067,0.00021917,2]
[400081146,1767075045169,-473.87727349,0.00021917,2]
[400081147,1767075045179,-265.15378107,0.00021917,2]
[400081148,1767075045188,-490.39925731,0.00021917,2]
[400081149,1767075045197,-526.06878392,0.00021917,2]
[400081150,1767075045207,-314.24489004,0.00021917,2]
[400081151,1767075045217,-331.36752874,0.00021917,2]
[400081152,1767075045226,-201.20744653,0.00021917,2]
[400081153,1767075045235,-598.60330821,0.00021917,2]
[400081154,1767075045244,-431.25014834,0.00021917,2]
[400081155,1767075045254,-385.91074519,0.00021917,2]
[400081156,1767075045263,-400.76687336,0.00021917,2]
[400081157,1767075045273,-500.42949407,0.00021917,2]
[400081158,1767075045284,-464.92212663,0.00021917,2]
[400081160,1767075045293,-343.1745665,0.00021917,2]
[400081162,1767075045303,-427.11920997,0.00021917,2]
[400081164,1767075045312,-502.21013442,0.00021917,2]
[400081165,1767075045321,-497.56652883,0.00021917,2]
[400081166,1767075045331,-238.25503049,0.00021917,2]
[400081167,1767075045340,-384.41444147,0.00021917,2]
[400081168,1767075045350,-519.17552996,0.00021917,2]
[400081169,1767075045360,-164.65948183,0.00021917,2]
[400081170,1767075045370,-161.71508024,0.00021917,2]
[400081171,1767075045380,-500.0,0.00021917,2]
[400081172,1767075045389,-164.75840004,0.00021917,2]
[400081173,1767075045399,-264.58772049,0.00021917,2]
[400081174,1767075045409,-509.52473583,0.00021917,2]
[400081175,1767075045419,-276.59515798,0.00021917,2]
[400081176,1767075045429,-271.49305234,0.00021917,2]
[400081177,1767075045438,-412.67053547,0.00021917,2]
[400081178,1767075045448,-476.48352169,0.00021917,2]
[400081179,1767075045457,-350.31194786,0.00021917,2]
[400081181,1767075045467,-480.0,0.00021917,2]
[400081183,1767075045476,-486.97399568,0.00021917,2]
[400081185,1767075045486,-289.23720001,0.00021917,2]
[400081187,1767075045495,-266.37885615,0.00021917,2]
[400081188,1767075045504,-409.14025866,0.00021917,2]
[400081189,1767075045514,-254.64616056,0.00021917,2]
[400081191,1767075045523,-463.64086682,0.00021917,2]
[400081193,1767075045532,-352.12809256,0.00021917,2]
[400081194,1767075045542,-211.4031778,0.00021917,2]
[400081196,1767075045552,-388.23781073,0.00021917,2]
[400081198,1767075045562,-500.0,0.00021917,2]
[400081200,1767075045571,-414.78188767,0.00021917,2]
[400081202,1767075045580,-209.24808648,0.00021917,2]
[400081204,1767075045590,-203.68765285,0.00021917,2]
[400081206,1767075045600,-500.0,0.00021917,2]
[400081208,1767075045609,-500.48773477,0.00021917,2]
[400081209,1767075045619,-255.68642444,0.00021917,2]
[400081210,1767075045628,-500.0,0.00021917,2]
[400081211,1767075045638,-408.46147524,0.00021917,2]
[400081212,1767075045647,-547.30025947,0.00021917,2]
[400081213,1767075045657,-500.0,0.00021917,2]
[400081214,1767075045672,-350.89172555,0.00021917,2]
[400081215,1767075045681,-252.55315958,0.00021917,2]
[400081216,1767075045690,-381.63449651,0.00021917,2]
[400081217,1767075045700,-500.85426906,0.00021917,2]
[400081218,1767075045711,-419.85498423,0.00021917,2]
[400081219,1767075045720,-452.29249023,0.00021917,2]
[400081220,1767075045729,-371.51920857,0.00021917,2]
[400081221,1767075045740,-465.38951167,0.00021917,2]
[400081223,1767075045749,-476.28746272,0.00021917,2]
[400081224,1767075045759,-500.0,0.00021917,2]
[400081225,1767075045768,-253.69817259,0.00021917,2]
[400081226,1767075045777,-543.83018981,0.00021917,2]
[400081227,1767075045787,-218.40529926,0.00021917,2]
[400081228,1767075045796,-367.57,0.00021917,2]
[400081229,1767075045805,-229.72161579,0.00021917,2]
[400081230,1767075045814,-1000.0,0.00021917,2]
[400081231,1767075045824,-174.75719953,0.00021917,2]
[400081232,1767075045833,-500.0,0.00021917,2]
[400081233,1767075045843,-502.82394057,0.00021917,2]
[400081234,1767075045852,-420.59897434,0.00021917,2]
[400081235,1767075045861,-500.0,0.00021917,2]
[400081236,1767075045871,-312.10792285,0.00021917,2]
[400081237,1767075045880,-504.94852854,0.00021917,2]
[400081238,1767075045889,-500.0,0.00021917,2]
[400081239,1767075045899,-500.0,0.00021917,2]
[400081240,1767075045908,-449.52632896,0.00021917,2]
[400081241,1767075045917,-190.15443372,0.00021917,2]
[400081242,1767075045926,-500.0,0.00021917,2]
[400081243,1767075045936,-322.16356758,0.00021917,2]
[400081244,1767075045945,-446.47983257,0.00021917,2]
[400081245,1767075045954,-240.1167908,0.00021917,2]
[400081246,1767075045963,-500.0,0.00021917,2]
[400081247,1767075045972,-166.77059855,0.00021917,2]
[400081248,1767075045982,-500.0,0.00021917,2]
[400081249,1767075045992,-173.90124415,0.00021917,2]
[400081250,1767075046002,-500.0,0.00021917,2]
[400081251,1767075046092,-501.06130346,0.00021917,2]
[400081252,1767075046102,-471.20943293,0.00021917,2]
[400081253,1767075046112,-233.18406558,0.00021917,2]
[400081254,1767075046121,-207.55302901,0.00021917,2]
[400081255,1767075046130,-457.80075992,0.00021917,2]
[400081256,1767075046140,-264.81256574,0.00021917,2]
[400081257,1767075046149,-413.44984279,0.00021917,2]
[400081258,1767075046159,-317.5572775,0.00021917,2]
[400081259,1767075046168,-478.56799403,0.00021917,2]
[400081260,1767075046177,-500.0,0.00021917,2]
[400081261,1767075046187,-356.03025943,0.00021917,2]
[400081262,1767075046196,-214.95652762,0.00021917,2]
[400081263,1767075046206,-222.15719484,0.00021917,2]
[400081264,1767075046215,-366.98241924,0.00021917,2]
[400081265,1767075046224,-270.05297428,0.00021917,2]
[400081266,1767075046234,-420.00377493,0.00021917,2]
[400081267,1767075046243,-223.46052725,0.00021917,2]
[400081268,1767075046252,-249.80248237,0.00021917,2]
[400081269,1767075046262,-501.88652616,0.00021917,2]
[400081270,1767075046271,-460.4,0.00021917,2]
[400081271,1767075046281,-266.15990212,0.00021917,2]
[400081272,1767075046290,-501.95207316,0.00021917,2]
[400081273,1767075046299,-363.52764202,0.00021917,2]
[400081274,1767075046308,-500.0,0.00021917,2]
[400081275,1767075046318,-492.63956766,0.00021917,2]
[400081276,1767075046327,-284.54001776,0.00021917,2]
[400081277,1767075046337,-443.63652163,0.00021917,2]
[400081278,1767075046346,-502.33993876,0.00021917,2]
[400081279,1767075046356,-446.84088329,0.00021917,2]
[400081280,1767075046365,-321.91286166,0.00021917,2]
[400081281,1767075046374,-402.34697744,0.00021917,2]
[400081282,1767075046383,-239.75984511,0.00021917,2]
[400081283,1767075046393,-186.1588418,0.00021917,2]
[400081284,1767075046403,-500.0,0.00021917,2]
[400081285,1767075046412,-296.77052659,0.00021917,2]
[400081286,1767075046422,-300.32782807,0.00021917,2]
[400081287,1767075046431,-416.61031872,0.00021917,2]
[400081288,1767075046441,-502.6980363,0.00021917,2]
[400081289,1767075046451,-544.01459209,0.00021917,2]
[400081290,1767075046461,-395.77091566,0.00021917,2]
[400081291,1767075046470,-489.54562049,0.00021917,2]
[400081292,1767075046480,-467.62343338,0.00021917,2]
[400081293,1767075046490,-313.88086763,0.00021917,2]
[400081294,1767075046500,-288.4165173,0.00021917,2]
[400081295,1767075046509,-258.00658869,0.00021917,2]
[400081296,1767075046519,-322.25574061,0.00021917,2]
[400081297,1767075046528,-190.49324555,0.00021917,2]
[400081298,1767075046538,-472.60378467,0.00021917,2]
[400081299,1767075046548,-398.22585687,0.00021917,2]
[400081300,1767075046558,-500.0,0.00021917,2]
[400081301,1767075046567,-226.98660314,0.00021917,2]
[400081302,1767075046577,-500.0,0.00021917,2]
[400081303,1767075046586,-297.37714473,0.00021917,2]
[400081304,1767075046595,-500.79380713,0.00021917,2]
[400081305,1767075046605,-500.0,0.00021917,2]
[400081306,1767075046614,-500.0,0.00021917,2]
[400081307,1767075046624,-474.57310077,0.00021917,2]
[400081308,1767075046633,-500.0,0.00021917,2]
[400081309,1767075046643,-274.58472757,0.00021917,2]
[400081310,1767075046652,-500.06397758,0.00021917,2]
[400081311,1767075046663,-500.87450242,0.00021917,2]
[400081312,1767075046673,-453.266142,0.00021917,2]
[400081313,1767075046683,-500.0,0.00021917,2]
[400081314,1767075046692,-338.6906951,0.00021917,2]
[400081315,1767075046702,-449.86221356,0.00021917,2]
[400081316,1767075046712,-443.55124021,0.00021917,2]
[400081317,1767075046722,-603.73735318,0.00021917,2]
[400081318,1767075046731,-221.03558067,0.00021917,2]
[400081319,1767075046742,-443.63446877,0.00021917,2]
[400081320,1767075046752,-490.76843281,0.00021917,2]
[400081321,1767075046762,-226.51399345,0.00021917,2]
[400081322,1767075046772,-626.49848798,0.00021917,2]
[400081323,1767075046781,-319.72849913,0.00021917,2]
[400081324,1767075046791,-500.31919433,0.00021917,2]
[400081325,1767075046800,-293.444273,0.00021918,2]
[400081326,1767075046810,-341.41,0.00021992,30]
[400081327,1767075046820,-370.65,0.00022,2]
[400081328,1767075046830,-151.0,0.00022,8]
[400081329,1767075046839,-567.81,0.00022,7]
[400081330,1767075046849,-1560.0,0.00022,2]
[400081331,1767075046858,-893.36396586,0.00022191,2]
[400081332,1767075046867,-500.0,0.00022191,2]
[400081333,1767075046878,-500.0,0.00022191,2]
[400081334,1767075046888,-500.0,0.00022191,2]
[400081335,1767075046897,-500.0,0.00022191,2]
[400081336,1767075046907,-425.3251123,0.00022191,2]
[400081337,1767075046916,-169.60907689,0.00022191,2]
[400081338,1767075046925,-501.10644483,0.00022191,2]
[400081339,1767075046935,-500.0,0.00022191,2]
[400081340,1767075046944,-500.0,0.00022191,2]
[400081341,1767075046953,-500.0,0.00022191,2]
[400081342,1767075046963,-1406.3,0.00022191,2]
[400081343,1767075046972,-500.0,0.00022191,2]
[400081344,1767075046981,-500.0,0.00022191,2]
[400081345,1767075046991,-500.0,0.00022191,2]
[400081346,1767075047001,-1000.0,0.00022191,2]
[400081347,1767075047010,-500.0,0.00022191,2]
[400081348,1767075047020,-500.0,0.00022191,2]
[400081349,1767075047030,-500.0,0.00022191,2]
[400081350,1767075047040,-500.0,0.00022191,2]
[400081351,1767075047050,-500.0,0.00022191,2]
[400081352,1767075047060,-500.0,0.00022191,2]
[400081353,1767075047070,-223.69019589,0.00022191,2]
[400081354,1767075047079,-500.0,0.00022191,2]
[400081355,1767075047089,-232.92010454,0.00022191,2]
[400081356,1767075047099,-500.0,0.00022191,2]
[400081357,1767075047109,-229.70253267,0.00022191,2]
[400081358,1767075047118,-500.50013322,0.00022191,2]
[400081359,1767075047128,-500.0,0.00022191,2]
[400081360,1767075047138,-534.62451166,0.00022191,2]
[400081361,1767075047148,-2247.2404038,0.00022394,2]
[400081362,1767075047157,-2620.78818025,0.00022429,2]
[400081363,1767075047166,-893.36396586,0.00022465,2]
[400081364,1767075047176,-500.0,0.00022465,2]
[400081365,1767075047186,-500.0,0.00022465,2]
[400081366,1767075047196,-500.0,0.00022465,2]
[400081367,1767075047206,-598.56632729,0.00022465,2]
[400081368,1767075047215,-500.0,0.00022465,2]
[400081369,1767075047225,-500.0,0.00022465,2]
[400081370,1767075047234,-500.0,0.00022465,2]
[400081371,1767075047244,-1406.3,0.00022465,2]
[400081372,1767075047253,-500.0,0.00022465,2]
[400081373,1767075047263,-500.0,0.00022465,2]
[400081374,1767075047273,-500.0,0.00022465,2]
[400081375,1767075047282,-1000.0,0.00022465,2]
[400081376,1767075047291,-500.0,0.00022465,2]
[400081377,1767075047301,-500.0,0.00022465,2]
[400081378,1767075047310,-500.0,0.00022465,2]
[400081379,1767075047320,-500.0,0.00022465,2]
[400081380,1767075047329,-500.0,0.00022465,2]
[400081381,1767075047339,-500.0,0.00022465,2]
[400081382,1767075047348,-500.0,0.00022465,2]
[400081383,1767075047357,-498.64088611,0.00022465,2]
[400081384,1767075047367,-500.0,0.00022465,2]
[400081385,1767075047376,-152.70127807,0.00022466,2]
[400081386,1767075047385,-1660.0,0.00022548,2]
[400081387,1767075047394,-1438.13702141,0.00022612,2]
[400081388,1767075047404,-404.0,0.00022645,2]
[400081389,1767075047414,-464.32812968,0.00022721,2]
[400081390,1767075047424,-893.36396586,0.00022739,2]
[400081391,1767075047434,-500.0,0.00022739,2]
[400081392,1767075047443,-500.0,0.00022739,2]
[400081393,1767075047453,-500.0,0.00022739,2]
[400081394,1767075047463,-500.0,0.00022739,2]
[400081395,1767075047472,-500.0,0.00022739,2]
[400081396,1767075047481,-500.0,0.00022739,2]
[400081397,1767075047491,-1406.3,0.00022739,2]
[400081398,1767075047500,-500.0,0.00022739,2]
[400081399,1767075047510,-500.0,0.00022739,2]
[400081400,1767075047519,-500.0,0.00022739,2]
[400081401,1767075047529,-569.34807645,0.00022739,2]
[400081402,1767075047540,-500.0,0.00022739,2]
[400081403,1767075047549,-504.4,0.00022739,2]
[400081404,1767075047558,-500.0,0.00022739,2]
[400081405,1767075047568,-500.0,0.00022739,2]
[400081406,1767075047578,-500.0,0.00022739,2]
[400081407,1767075047587,-505.79587884,0.00022739,2]
[400081408,1767075047596,-500.0,0.00022739,2]
[400081409,1767075047606,-592.77633965,0.00022739,2]
[400081410,1767075047616,-379.10926537,0.00022828,2]
[400081411,1767075047625,-350.6822047,0.00022966,12]
[400081412,1767075047634,-512.12,0.00022991,30]
[400081413,1767075047643,-893.36396586,0.00023013,2]
[400081414,1767075047654,-500.0,0.00023013,2]
[400081415,1767075047669,-500.0,0.00023013,2]
[400081416,1767075047678,-500.0,0.00023013,2]
[400081417,1767075047687,-1406.3,0.00023013,2]
[400081418,1767075047696,-500.0,0.00023013,2]
[400081419,1767075047707,-500.0,0.00023013,2]
[400081420,1767075047716,-500.0,0.00023013,2]
[400081421,1767075047726,-500.0,0.00023013,2]
[400081422,1767075047738,-500.0,0.00023013,2]
[400081423,1767075047749,-500.0,0.00023013,2]
[400081424,1767075047759,-1000.0,0.00023075,10]
[400081425,1767075047769,-791.0,0.00023075,10]
[400081426,1767075047780,-1760.0,0.00023096,2]
[400081427,1767075047864,-1055.258506,0.0002314,2]
[400081428,1767075047874,-1055.258506,0.0002314,2]
[400081429,1767075047884,-1055.258506,0.0002314,2]
[400081430,1767075047894,-1055.258506,0.0002314,2]
[400081431,1767075047904,-700.0,0.0002314,2]
[400081432,1767075047914,-398.79767436,0.00023287,2]
[400081433,1767075047923,-500.0,0.00023287,2]
[400081434,1767075047933,-500.0,0.00023287,2]
[400081435,1767075047943,-588.47770235,0.00023287,2]
[400081436,1767075047952,-1406.3,0.00023287,2]
[400081437,1767075047962,-500.0,0.00023287,2]
[400081438,1767075047971,-500.0,0.00023287,2]
[400081439,1767075047981,-500.0,0.00023287,2]
[400081440,1767075047990,-500.0,0.00023287,2]
[400081441,1767075048000,-500.0,0.00023287,2]
[400081442,1767075048010,-223.2,0.00023287,2]
[400081443,1767075048019,-668.39868106,0.00023295,2]
[400081444,1767075048028,-700.0,0.00023335,2]
[400081445,1767075048038,-151.0,0.000234,10]
[400081446,1767075048047,-167.63,0.000234,7]
[400081447,1767075048057,-163.05,0.000234,7]
[400081448,1767075048067,-500.0,0.00023561,2]
[400081449,1767075048076,-500.0,0.00023561,2]
[400081450,1767075048087,-1406.3,0.00023561,2]
[400081451,1767075048096,-500.0,0.00023561,2]
[400081452,1767075048106,-500.0,0.00023561,2]
[400081453,1767075048115,-500.0,0.00023561,2]
[400081454,1767075048124,-513.16,0.00023561,2]
[400081455,1767075048134,-500.0,0.00023561,2]
[400081456,1767075048143,-281.56166012,0.00023616,10]
[400081457,1767075048153,-1860.0,0.00023644,2]
[400081458,1767075048162,-162.87917481,0.00023657,2]
[400081459,1767075048172,-700.0,0.00023678,2]
[400081460,1767075048181,-700.0,0.00023743,2]
[400081461,1767075048190,-700.0,0.00023777,2]
[400081462,1767075048199,-567.81,0.000238,7]
[400081463,1767075048209,-3511.31313094,0.00023834,2]
[400081464,1767075048218,-500.0,0.00023835,2]
[400081465,1767075048228,-200.0,0.00023835,2]
[400081466,1767075048238,-200.0,0.00023835,2]
[400081467,1767075048248,-200.0,0.00023835,2]
[400081468,1767075048258,-200.0,0.00023835,2]
[400081469,1767075048267,-200.0,0.00023835,2]
[400081470,1767075048277,-200.0,0.00023835,2]
[400081471,1767075048286,-200.0,0.00023835,2]
[400081472,1767075048295,-200.0,0.00023835,2]
[400081473,1767075048304,-1406.3,0.00023835,2]
[400081474,1767075048313,-500.0,0.00023835,2]
[400081475,1767075048323,-500.0,0.00023835,2]
[400081476,1767075048333,-500.0,0.00023835,2]
[400081477,1767075048343,-500.0,0.00023835,2]
[400081478,1767075048352,-9961.44,0.000239,2]
[400081479,1767075048362,-500.0,0.00023921,2]
[400081480,1767075048371,-682.82,0.00023991,30]
[400081481,1767075048380,-700.0,0.00023996,2]
[400081482,1767075048391,-500.0,0.00024109,2]
[400081483,1767075048400,-200.0,0.00024109,2]
[400081484,1767075048409,-1406.3,0.00024109,2]
[400081485,1767075048418,-500.0,0.00024109,2]
[400081486,1767075048428,-500.0,0.00024109,2]
[400081487,1767075048437,-500.0,0.00024109,2]
[400081488,1767075048447,-500.0,0.00024109,2]
[400081489,1767075048456,-404.0,0.00024149,2]
[400081490,1767075048465,-665.07279349,0.00024182,2]
[400081491,1767075048475,-1960.0,0.00024192,2]
[400081492,1767075048484,-350.6822047,0.00024195,14]
[400081493,1767075048493,-500.0,0.00024383,2]
[400081494,1767075048503,-200.0,0.00024383,2]
[400081495,1767075048512,-1406.3,0.00024383,2]
[400081496,1767075048521,-500.0,0.00024383,2]
[400081497,1767075048531,-500.0,0.00024383,2]
[400081498,1767075048540,-500.0,0.00024383,2]
[400081499,1767075048550,-500.0,0.00024383,2]
[400081500,1767075048559,-191.79576387,0.00024505,2]
[400081501,1767075048568,-2556.68803806,0.000246,2]
[400081502,1767075048577,-500.0,0.00024657,2]
[400081503,1767075048587,-200.0,0.00024657,2]
[400081504,1767075048596,-1406.3,0.00024657,2]
[400081505,1767075048606,-500.0,0.00024657,2]
[400081506,1767075048615,-500.0,0.00024657,2]
[400081507,1767075048624,-500.0,0.00024657,2]
[400081508,1767075048634,-531.9,0.00024657,2]
[400081509,1767075048644,-380.0,0.00024658,2]
[400081510,1767075048653,-700.0,0.00024687,2]
[400081511,1767075048665,-151.0,0.000247,7]
[400081512,1767075048674,-151.0,0.000247,7]
[400081513,1767075048684,-500.15351,0.000247,7]
[400081514,1767075048693,-500.15351,0.000247,7]
[400081515,1767075048703,-500.15351,0.000247,7]
[400081516,1767075048712,-500.15351,0.000247,7]
[400081517,1767075048723,-508.31711039,0.00024721,2]
[400081518,1767075048732,-2060.0,0.0002474,2]
[400081519,1767075048742,-151.0,0.000248,7]
[400081520,1767075048752,-151.0,0.000248,7]
[400081521,1767075048760,-151.0,0.000248,7]
[400081522,1767075048770,-151.0,0.000248,7]
[400081523,1767075048779,-343.61697699,0.000248,2]
[400081524,1767075048788,-151.0,0.000248,7]
[400081525,1767075048798,-246.945504,0.000248,7]
[400081526,1767075048807,-151.0,0.000248,7]
[400081527,1767075048816,-151.0,0.000248,7]
[400081528,1767075048825,-151.0,0.000248,7]
[400081529,1767075048835,-151.0,0.000248,7]
[400081530,1767075048844,-151.000001,0.000248,7]
[400081531,1767075048853,-22653.7839182,0.000248,2]
[400081532,1767075048863,-151.0,0.000249,7]
[400081533,1767075048872,-151.0,0.000249,7]
[400081534,1767075048882,-155.034769,0.000249,7]
[400081535,1767075048891,-151.0,0.000249,7]
[400081536,1767075048901,-151.0,0.000249,7]
[400081537,1767075048910,-291.372956,0.000249,7]
[400081538,1767075048919,-154.47396,0.000249,7]
[400081539,1767075048928,-151.0,0.000249,7]
[400081540,1767075048937,-151.0,0.000249,7]
[400081541,1767075048946,-151.0,0.000249,7]